[Event "January 9 Early 2024"]
[Site "https://www.chess.com"]
[Date "2024.01.11"]
[Round "10"]
[White "Sadhwani, Raunak"]
[Black "Popov, Konstantin"]
[Result "1/2-1/2"]
[Board "203"]
[TimeControl "180+1"]
[WhiteFideId "35093487"]
[BlackFideId "34137910"]
[WhiteElo "3052"]
[BlackElo "2914"]
[WhiteTeam "IND"]
[BlackTeam "FID"]
[WhiteClock "0:00:11"]
[BlackClock "0:00:11"]

1. e4 {[%clk 0:02:59]}  c5 {[%clk 0:02:59]} 2. Nf3 {[%clk 0:02:59]}  d6 {[%clk 0:03:00]} 3. Bb5+ {[%clk 0:03:00]}  Nd7 {[%clk 0:02:59]} 4. Ba4 {[%clk 0:02:58]}  a6 {[%clk 0:02:59]} 5. c4 {[%clk 0:02:58]}  Nf6 {[%clk 0:03:00]} 6. O-O {[%clk 0:02:58]}  g6 {[%clk 0:03:00]} 7. Nc3 {[%clk 0:02:53]}  Bg7 {[%clk 0:02:58]} 8. d3 {[%clk 0:02:54]}  O-O {[%clk 0:02:58]} 9. h3 {[%clk 0:02:55]}  Rb8 {[%clk 0:02:58]} 10. Be3 {[%clk 0:02:54]}  Ne8 {[%clk 0:02:57]} 11. d4 {[%clk 0:02:53]}  cxd4 {[%clk 0:02:55]} 12. Bxd4 {[%clk 0:02:54]}  Nef6 {[%clk 0:02:52]} 13. Qe2 {[%clk 0:02:51]}  e5 {[%clk 0:02:40]} 14. Ba7 {[%clk 0:02:46]}  Ra8 {[%clk 0:02:40]} 15. Be3 {[%clk 0:02:47]}  Qc7 {[%clk 0:02:34]} 16. Rac1 {[%clk 0:02:46]}  Nc5 {[%clk 0:02:23]} 17. Bc2 {[%clk 0:02:44]}  b6 {[%clk 0:02:20]} 18. b4 {[%clk 0:02:39]}  Ncd7 {[%clk 0:02:20]} 19. Nd5 {[%clk 0:02:33]}  Nxd5 {[%clk 0:02:19]} 20. cxd5 {[%clk 0:02:33]}  Qd8 {[%clk 0:02:07]} 21. Nd2 {[%clk 0:02:25]}  f5 {[%clk 0:01:59]} 22. f3 {[%clk 0:02:22]}  b5 {[%clk 0:01:51]} 23. Nb3 {[%clk 0:02:19]}  Nf6 {[%clk 0:01:46]} 24. g4 {[%clk 0:02:17]}  h5 {[%clk 0:01:18]} 25. g5 {[%clk 0:02:07]}  Nh7 {[%clk 0:01:18]} 26. h4 {[%clk 0:02:08]}  f4 {[%clk 0:01:18]} 27. Bd2 {[%clk 0:02:05]}  Bh3 {[%clk 0:01:10]} 28. Rfe1 {[%clk 0:02:02]}  Rc8 {[%clk 0:01:08]} 29. Kh2 {[%clk 0:02:00]}  Bd7 {[%clk 0:01:07]} 30. Qf2 {[%clk 0:01:51]}  Nxg5 {[%clk 0:00:57]} 31. hxg5 {[%clk 0:01:51]}  Qxg5 {[%clk 0:00:58]} 32. Rg1 {[%clk 0:01:50]}  Qf6 {[%clk 0:00:58]} 33. Bd1 {[%clk 0:01:38]}  g5 {[%clk 0:00:56]} 34. Rxc8 {[%clk 0:01:31]}  Rxc8 {[%clk 0:00:57]} 35. Be1 {[%clk 0:01:23]}  g4 {[%clk 0:00:41]} 36. fxg4 {[%clk 0:01:24]}  hxg4 {[%clk 0:00:41]} 37. Bxg4 {[%clk 0:01:17]}  Qh6+ {[%clk 0:00:41]} 38. Qh4 {[%clk 0:01:17]}  Rc2+ {[%clk 0:00:41]} 39. Kh3 {[%clk 0:01:04]}  Bxg4+ {[%clk 0:00:36]} 40. Rxg4 {[%clk 0:01:00]}  Kf7 {[%clk 0:00:35]} 41. Na5 {[%clk 0:00:47]}  Rxa2 {[%clk 0:00:31]} 42. Nb7 {[%clk 0:00:45]}  Ra3+ {[%clk 0:00:27]} 43. Kh2 {[%clk 0:00:44]}  Ra2+ {[%clk 0:00:27]} 44. Rg2 {[%clk 0:00:26]}  Rxg2+ {[%clk 0:00:16]} 45. Kxg2 {[%clk 0:00:27]}  Qg6+ {[%clk 0:00:15]} 46. Kf3 {[%clk 0:00:27]}  Bf8 {[%clk 0:00:12]} 47. Qg4 {[%clk 0:00:22]}  Qh6 {[%clk 0:00:12]} 48. Nd8+ {[%clk 0:00:09]}  Ke8 {[%clk 0:00:10]} 49. Bh4 {[%clk 0:00:08]}  Be7 {[%clk 0:00:07]} 50. Bxe7 {[%clk 0:00:09]}  Qh1+ {[%clk 0:00:06]} 51. Kf2 {[%clk 0:00:09]}  Kxe7 {[%clk 0:00:02]} 52. Nc6+ {[%clk 0:00:09]}  Kf6 {[%clk 0:00:03]} 53. Qf5+ {[%clk 0:00:09]}  Kg7 {[%clk 0:00:03]} 54. Qd7+ {[%clk 0:00:10]}  Kh8 {[%clk 0:00:02]} 55. Qe8+ {[%clk 0:00:09]}  Kh7 {[%clk 0:00:03]} 56. Qe7+ {[%clk 0:00:09]}  Kh8 {[%clk 0:00:03]} 57. Qf6+ {[%clk 0:00:10]}  Kh7 {[%clk 0:00:04]} 58. Qf7+ {[%clk 0:00:11]}  Kh8 {[%clk 0:00:04]} 59. Qf6+ {[%clk 0:00:11]}  Kh7 {[%clk 0:00:05]} 60. Qf5+ {[%clk 0:00:12]}  Kh8 {[%clk 0:00:06]} 61. Qc8+ {[%clk 0:00:09]}  Kh7 {[%clk 0:00:06]} 62. Qc7+ {[%clk 0:00:10]}  Kh8 {[%clk 0:00:06]} 63. Qxd6 {[%clk 0:00:11]}  Qh2+ {[%clk 0:00:04]} 64. Ke1 {[%clk 0:00:10]}  Qg1+ {[%clk 0:00:04]} 65. Kd2 {[%clk 0:00:09]}  Qe3+ {[%clk 0:00:05]} 66. Kd1 {[%clk 0:00:09]}  Qd3+ {[%clk 0:00:05]} 67. Ke1 {[%clk 0:00:08]}  Qe3+ {[%clk 0:00:05]} 68. Kf1 {[%clk 0:00:08]}  Qf3+ {[%clk 0:00:05]} 69. Kg1 {[%clk 0:00:08]}  Qg3+ {[%clk 0:00:06]} 70. Kf1 {[%clk 0:00:09]}  Qf3+ {[%clk 0:00:06]} 71. Ke1 {[%clk 0:00:08]}  Qe3+ {[%clk 0:00:07]} 72. Kd1 {[%clk 0:00:08]}  Qd3+ {[%clk 0:00:07]} 73. Kc1 {[%clk 0:00:09]}  Qc3+ {[%clk 0:00:08]} 74. Kb1 {[%clk 0:00:10]}  Qb3+ {[%clk 0:00:08]} 75. Ka1 {[%clk 0:00:10]}  Qa3+ {[%clk 0:00:09]} 76. Kb1 {[%clk 0:00:11]}  Qb3+ {[%clk 0:00:10]} 77. Ka1 {[%clk 0:00:10]}  Qa3+ {[%clk 0:00:10]} 78. Kb1 {[%clk 0:00:11]}  Qb3+ {[%clk 0:00:11]} 1/2-1/2

[Event "January 9 Early 2024"]
[Site "https://www.chess.com"]
[Date "2024.01.11"]
[Round "10"]
[White "Aashman Gupta"]
[Black "Cordoba Roa, Angel Gabriel"]
[Result "1/2-1/2"]
[Board "206"]
[TimeControl "180+1"]
[WhiteFideId "45022500"]
[BlackFideId "3957624"]
[WhiteElo "2493"]
[BlackElo "2624"]
[WhiteTeam "IND"]
[BlackTeam "COL"]
[WhiteClock "0:00:20"]
[BlackClock "0:00:34"]

1. b3 {[%clk 0:02:48]}  e5 {[%clk 0:02:59]} 2. Bb2 {[%clk 0:02:46]}  Nc6 {[%clk 0:03:00]} 3. e3 {[%clk 0:02:46]}  Nf6 {[%clk 0:02:58]} 4. Bb5 {[%clk 0:02:45]}  Bd6 {[%clk 0:02:59]} 5. Na3 {[%clk 0:02:40]}  Na5 {[%clk 0:02:40]} 6. Be2 {[%clk 0:02:32]}  O-O {[%clk 0:02:38]} 7. c4 {[%clk 0:02:30]}  Be7 {[%clk 0:02:33]} 8. Nc2 {[%clk 0:02:26]}  Nc6 {[%clk 0:02:31]} 9. d4 {[%clk 0:02:24]}  exd4 {[%clk 0:02:32]} 10. Nxd4 {[%clk 0:02:23]}  Bb4+ {[%clk 0:02:32]} 11. Kf1 {[%clk 0:02:21]}  Re8 {[%clk 0:02:32]} 12. Ngf3 {[%clk 0:02:19]}  d6 {[%clk 0:02:27]} 13. a3 {[%clk 0:02:18]}  Bc5 {[%clk 0:02:27]} 14. b4 {[%clk 0:02:18]}  Bb6 {[%clk 0:02:27]} 15. Nxc6 {[%clk 0:02:11]}  bxc6 {[%clk 0:02:28]} 16. Qc2 {[%clk 0:02:06]}  Ne4 {[%clk 0:02:25]} 17. Nd2 {[%clk 0:02:00]}  Nxf2 {[%clk 0:01:51]} 18. Kxf2 {[%clk 0:01:45]}  Bxe3+ {[%clk 0:01:51]} 19. Kf1 {[%clk 0:01:34]}  Qh4 {[%clk 0:01:51]} 20. g3 {[%clk 0:01:22]}  Qh3+ {[%clk 0:01:51]} 21. Ke1 {[%clk 0:01:22]}  Qg2 {[%clk 0:01:51]} 22. Rf1 {[%clk 0:01:13]}  Bh3 {[%clk 0:01:41]} 23. Kd1 {[%clk 0:00:54]}  Bxd2 {[%clk 0:01:35]} 24. Qxd2 {[%clk 0:00:46]}  Rxe2 {[%clk 0:01:11]} 25. Qxe2 {[%clk 0:00:44]}  Qxf1+ {[%clk 0:01:11]} 26. Qxf1 {[%clk 0:00:39]}  Bxf1 {[%clk 0:01:12]} 27. Rc1 {[%clk 0:00:35]}  Re8 {[%clk 0:01:11]} 28. Bd4 {[%clk 0:00:20]}  a6 {[%clk 0:01:08]} 29. Kd2 {[%clk 0:00:16]}  Re4 {[%clk 0:01:00]} 30. Kc3 {[%clk 0:00:08]}  Bh3 {[%clk 0:00:47]} 31. c5 {[%clk 0:00:05]}  Be6 {[%clk 0:00:45]} 32. Kd3 {[%clk 0:00:03]}  Bd5 {[%clk 0:00:45]} 33. cxd6 {[%clk 0:00:01]}  cxd6 {[%clk 0:00:46]} 34. Rf1 {[%clk 0:00:01]}  Rg4 {[%clk 0:00:42]} 35. Rf4 {[%clk 0:00:01]}  Rxf4 {[%clk 0:00:39]} 36. gxf4 {[%clk 0:00:02]}  f6 {[%clk 0:00:37]} 37. Bb6 {[%clk 0:00:02]}  Kf7 {[%clk 0:00:38]} 38. Kd4 {[%clk 0:00:02]}  Ke6 {[%clk 0:00:37]} 39. Bc7 {[%clk 0:00:03]}  Bg2 {[%clk 0:00:36]} 40. a4 {[%clk 0:00:03]}  Bf3 {[%clk 0:00:34]} 41. a5 {[%clk 0:00:04]}  g5 {[%clk 0:00:31]} 42. fxg5 {[%clk 0:00:03]}  fxg5 {[%clk 0:00:32]} 43. Ke3 {[%clk 0:00:04]}  Bh1 {[%clk 0:00:32]} 44. Kf2 {[%clk 0:00:03]}  h5 {[%clk 0:00:30]} 45. Kg3 {[%clk 0:00:03]}  Be4 {[%clk 0:00:29]} 46. Kf2 {[%clk 0:00:03]}  h4 {[%clk 0:00:27]} 47. Ke3 {[%clk 0:00:04]}  Bd5 {[%clk 0:00:26]} 48. Bd8 {[%clk 0:00:04]}  Kf5 {[%clk 0:00:26]} 49. Be7 {[%clk 0:00:05]}  g4 {[%clk 0:00:13]} 50. Bxh4 {[%clk 0:00:04]}  g3 {[%clk 0:00:14]} 51. Bxg3 {[%clk 0:00:04]}  Ke6 {[%clk 0:00:14]} 52. Kd4 {[%clk 0:00:05]}  Bf3 {[%clk 0:00:14]} 53. h4 {[%clk 0:00:06]}  Bd1 {[%clk 0:00:14]} 54. Bf4 {[%clk 0:00:06]}  Bh5 {[%clk 0:00:15]} 55. Ke3 {[%clk 0:00:07]}  Bg4 {[%clk 0:00:16]} 56. Kf2 {[%clk 0:00:07]}  d5 {[%clk 0:00:15]} 57. Kg3 {[%clk 0:00:07]}  Kf5 {[%clk 0:00:15]} 58. Bd6 {[%clk 0:00:07]}  Be2 {[%clk 0:00:14]} 59. Bc5 {[%clk 0:00:07]}  Kg6 {[%clk 0:00:15]} 60. Kf4 {[%clk 0:00:07]}  Kh5 {[%clk 0:00:14]} 61. Bf2 {[%clk 0:00:07]}  Bb5 {[%clk 0:00:13]} 62. Ke5 {[%clk 0:00:07]}  Bc4 {[%clk 0:00:14]} 63. Kd6 {[%clk 0:00:07]}  Bb5 {[%clk 0:00:15]} 64. Kc5 {[%clk 0:00:08]}  Kg4 {[%clk 0:00:15]} 65. Kb6 {[%clk 0:00:08]}  Kh5 {[%clk 0:00:16]} 66. Kc5 {[%clk 0:00:08]}  Kg4 {[%clk 0:00:17]} 67. Be1 {[%clk 0:00:08]}  Kh5 {[%clk 0:00:18]} 68. Bc3 {[%clk 0:00:06]}  Kg4 {[%clk 0:00:19]} 69. Bf6 {[%clk 0:00:07]}  Kf5 {[%clk 0:00:18]} 70. Bg5 {[%clk 0:00:07]}  Kg4 {[%clk 0:00:18]} 71. Kd4 {[%clk 0:00:07]}  Kh5 {[%clk 0:00:18]} 72. Ke5 {[%clk 0:00:07]}  Kg6 {[%clk 0:00:18]} 73. Kf4 {[%clk 0:00:07]}  d4 {[%clk 0:00:18]} 74. Kg4 {[%clk 0:00:04]}  Be2+ {[%clk 0:00:18]} 75. Kf4 {[%clk 0:00:04]}  d3 {[%clk 0:00:19]} 76. Ke3 {[%clk 0:00:04]}  Kh5 {[%clk 0:00:19]} 77. Kd2 {[%clk 0:00:05]}  Bf1 {[%clk 0:00:20]} 78. Ke1 {[%clk 0:00:05]}  Be2 {[%clk 0:00:20]} 79. Kd2 {[%clk 0:00:06]}  Kg4 {[%clk 0:00:21]} 80. Be7 {[%clk 0:00:06]}  Kf5 {[%clk 0:00:21]} 81. Bd8 {[%clk 0:00:06]}  Ke6 {[%clk 0:00:22]} 82. Bg5 {[%clk 0:00:06]}  Kd5 {[%clk 0:00:22]} 83. Be7 {[%clk 0:00:07]}  Kc4 {[%clk 0:00:22]} 84. Bc5 {[%clk 0:00:07]}  Kb5 {[%clk 0:00:21]} 85. h5 {[%clk 0:00:07]}  Bxh5 {[%clk 0:00:22]} 86. Kxd3 {[%clk 0:00:08]}  Bf7 {[%clk 0:00:23]} 87. Kd4 {[%clk 0:00:09]}  Bc4 {[%clk 0:00:23]} 88. Ke5 {[%clk 0:00:10]}  Bd5 {[%clk 0:00:24]} 89. Kd6 {[%clk 0:00:10]}  Bc4 {[%clk 0:00:25]} 90. Kc7 {[%clk 0:00:11]}  Bd5 {[%clk 0:00:26]} 91. Kd6 {[%clk 0:00:12]}  Bc4 {[%clk 0:00:27]} 92. Ke5 {[%clk 0:00:13]}  Bd5 {[%clk 0:00:28]} 93. Kd4 {[%clk 0:00:14]}  Bc4 {[%clk 0:00:29]} 94. Kc3 {[%clk 0:00:15]}  Bd5 {[%clk 0:00:30]} 95. Kb2 {[%clk 0:00:16]}  Bc4 {[%clk 0:00:31]} 96. Ka3 {[%clk 0:00:17]}  Bd5 {[%clk 0:00:32]} 97. Bd4 {[%clk 0:00:18]}  Bc4 {[%clk 0:00:32]} 98. Bc5 {[%clk 0:00:18]}  Bd5 {[%clk 0:00:33]} 99. Bg1 {[%clk 0:00:19]}  Bc4 {[%clk 0:00:34]} 100. Bc5 {[%clk 0:00:20]} 1/2-1/2

[Event "January 9 Early 2024"]
[Site "https://www.chess.com"]
[Date "2024.01.11"]
[Round "10"]
[White "Pranav, V"]
[Black "Drygalov, Sergey"]
[Result "0-1"]
[Board "207"]
[TimeControl "180+1"]
[WhiteFideId "25060783"]
[BlackFideId "24171743"]
[WhiteElo "3032"]
[BlackElo "2960"]
[WhiteTeam "IND"]
[BlackTeam "RUS"]
[WhiteClock "0:00:01"]
[BlackClock "0:00:04"]

1. e4 {[%clk 0:03:00]}  c5 {[%clk 0:03:00]} 2. Nf3 {[%clk 0:03:00]}  d6 {[%clk 0:03:01]} 3. c3 {[%clk 0:02:58]}  Nf6 {[%clk 0:03:00]} 4. Be2 {[%clk 0:02:57]}  g6 {[%clk 0:03:00]} 5. O-O {[%clk 0:02:57]}  Bg7 {[%clk 0:03:00]} 6. Re1 {[%clk 0:02:58]}  O-O {[%clk 0:03:00]} 7. Bf1 {[%clk 0:02:58]}  e5 {[%clk 0:02:59]} 8. d4 {[%clk 0:02:57]}  exd4 {[%clk 0:02:59]} 9. cxd4 {[%clk 0:02:58]}  cxd4 {[%clk 0:02:59]} 10. Nxd4 {[%clk 0:02:59]}  Nc6 {[%clk 0:02:59]} 11. Nxc6 {[%clk 0:02:56]}  bxc6 {[%clk 0:02:58]} 12. Nc3 {[%clk 0:02:57]}  d5 {[%clk 0:02:55]} 13. exd5 {[%clk 0:02:52]}  Nxd5 {[%clk 0:02:54]} 14. Ne4 {[%clk 0:02:51]}  Bf5 {[%clk 0:02:48]} 15. Ng3 {[%clk 0:02:44]}  Be6 {[%clk 0:02:45]} 16. a3 {[%clk 0:02:42]}  Rb8 {[%clk 0:02:43]} 17. Qc2 {[%clk 0:02:36]}  Qb6 {[%clk 0:02:36]} 18. Bc4 {[%clk 0:02:32]}  Rfe8 {[%clk 0:02:33]} 19. Rd1 {[%clk 0:02:15]}  Bg4 {[%clk 0:02:25]} 20. Rf1 {[%clk 0:02:11]}  h5 {[%clk 0:02:15]} 21. Qa4 {[%clk 0:01:37]}  Qc5 {[%clk 0:01:52]} 22. Bxd5 {[%clk 0:01:30]}  cxd5 {[%clk 0:01:47]} 23. Be3 {[%clk 0:01:26]}  Qc4 {[%clk 0:01:31]} 24. Qxa7 {[%clk 0:01:21]}  h4 {[%clk 0:01:28]} 25. Rfc1 {[%clk 0:01:09]}  Qd3 {[%clk 0:01:20]} 26. Nf1 {[%clk 0:01:06]}  h3 {[%clk 0:01:18]} 27. Qa4 {[%clk 0:00:43]}  d4 {[%clk 0:01:19]} 28. Bg5 {[%clk 0:00:16]}  Qe4 {[%clk 0:01:05]} 29. Qc6 {[%clk 0:00:13]}  Qxc6 {[%clk 0:00:55]} 30. Rxc6 {[%clk 0:00:14]}  hxg2 {[%clk 0:00:56]} 31. Kxg2 {[%clk 0:00:14]}  Rxb2 {[%clk 0:00:55]} 32. Bf6 {[%clk 0:00:04]}  Ree2 {[%clk 0:00:54]} 33. Kg3 {[%clk 0:00:04]}  Be6 {[%clk 0:00:35]} 34. Bxg7 {[%clk 0:00:03]}  Kxg7 {[%clk 0:00:36]} 35. Rd6 {[%clk 0:00:04]}  Rxf2 {[%clk 0:00:31]} 36. Rxd4 {[%clk 0:00:04]}  g5 {[%clk 0:00:29]} 37. Ne3 {[%clk 0:00:03]}  f5 {[%clk 0:00:28]} 38. Nd5 {[%clk 0:00:01]}  Rxh2 {[%clk 0:00:19]} 39. Re1 {[%clk 0:00:02]}  f4+ {[%clk 0:00:19]} 40. Kf3 {[%clk 0:00:02]}  Bf5 {[%clk 0:00:19]} 41. Nxf4 {[%clk 0:00:01]}  Rb3+ {[%clk 0:00:18]} 42. Re3 {[%clk 0:00:02]}  Rxe3+ {[%clk 0:00:11]} 43. Kxe3 {[%clk 0:00:03]}  gxf4+ {[%clk 0:00:12]} 44. Kxf4 {[%clk 0:00:04]}  Kf6 {[%clk 0:00:11]} 45. Rd6+ {[%clk 0:00:04]}  Be6 {[%clk 0:00:12]} 46. Ra6 {[%clk 0:00:04]}  Rh4+ {[%clk 0:00:11]} 47. Ke3 {[%clk 0:00:05]}  Ke5 {[%clk 0:00:12]} 48. Kd2 {[%clk 0:00:04]}  Bc4 {[%clk 0:00:08]} 49. Ra8 {[%clk 0:00:04]}  Kd4 {[%clk 0:00:09]} 50. Rd8+ {[%clk 0:00:04]}  Bd5 {[%clk 0:00:09]} 51. a4 {[%clk 0:00:04]}  Rh2+ {[%clk 0:00:08]} 52. Ke1 {[%clk 0:00:04]}  Ke4 {[%clk 0:00:07]} 53. a5 {[%clk 0:00:03]}  Bc4 {[%clk 0:00:07]} 54. Rc8 {[%clk 0:00:02]}  Bd3 {[%clk 0:00:02]} 55. Re8+ {[%clk 0:00:01]}  Kd4 {[%clk 0:00:02]} 56. Re6 {[%clk 0:00:01]}  Be4 {[%clk 0:00:02]} 57. a6 {[%clk 0:00:02]}  Ke3 {[%clk 0:00:03]} 58. Rf6 {[%clk 0:00:01]}  Re2+ {[%clk 0:00:03]} 59. Kf1 {[%clk 0:00:01]}  Ra2 {[%clk 0:00:04]} 60. Kg1 {[%clk 0:00:02]}  Ra1+ {[%clk 0:00:04]} 61. Kh2 {[%clk 0:00:02]}  Rh1+ {[%clk 0:00:05]} 62. Kg3 {[%clk 0:00:02]}  Rg1+ {[%clk 0:00:05]} 63. Kh4 {[%clk 0:00:03]}  Ra1 {[%clk 0:00:02]} 64. Kg5 {[%clk 0:00:03]}  Bd3 {[%clk 0:00:02]} 65. Re6+ {[%clk 0:00:02]}  Kd4 {[%clk 0:00:02]} 66. Rd6+ {[%clk 0:00:02]}  Ke4 {[%clk 0:00:03]} 67. Re6+ {[%clk 0:00:02]}  Kd5 {[%clk 0:00:03]} 68. Re8 {[%clk 0:00:01]}  Bxa6 {[%clk 0:00:03]} 69. Kf4 {[%clk 0:00:02]}  Rf1+ {[%clk 0:00:02]} 70. Kg3 {[%clk 0:00:02]}  Bd3 {[%clk 0:00:02]} 71. Rd8+ {[%clk 0:00:03]}  Ke4 {[%clk 0:00:03]} 72. Re8+ {[%clk 0:00:03]}  Kd4 {[%clk 0:00:03]} 73. Kg2 {[%clk 0:00:02]}  Rf6 {[%clk 0:00:04]} 74. Kg3 {[%clk 0:00:02]}  Be4 {[%clk 0:00:04]} 75. Rb8 {[%clk 0:00:01]}  Ke3 {[%clk 0:00:04]} 76. Rb3+ {[%clk 0:00:01]}  Bd3 {[%clk 0:00:05]} 77. Ra3 {[%clk 0:00:02]}  Rg6+ {[%clk 0:00:05]} 78. Kh3 {[%clk 0:00:02]}  Rg8 {[%clk 0:00:06]} 79. Rb3 {[%clk 0:00:01]}  Ke4 {[%clk 0:00:06]} 80. Ra3 {[%clk 0:00:01]}  Be2 {[%clk 0:00:06]} 81. Kh2 {[%clk 0:00:01]}  Kf4 {[%clk 0:00:04]} 0-1

[Event "January 9 Early 2024"]
[Site "https://www.chess.com"]
[Date "2024.01.11"]
[Round "11"]
[White "Blokhin, Sofia"]
[Black "Mesquita, Eduardo Barbosa"]
[Result "1-0"]
[Board "3"]
[TimeControl "180+1"]
[WhiteFideId "4508190"]
[BlackFideId "22757163"]
[WhiteElo "2312"]
[BlackElo "2422"]
[WhiteTeam "EST"]
[BlackTeam "BRA"]
[WhiteClock "0:01:59"]
[BlackClock "0:02:19"]

1. d4 {[%clk 0:03:00]}  d5 {[%clk 0:02:45]} 2. c4 {[%clk 0:03:00]}  e6 {[%clk 0:02:45]} 3. Nc3 {[%clk 0:03:00]}  Nf6 {[%clk 0:02:45]} 4. Nf3 {[%clk 0:03:00]}  a6 {[%clk 0:02:45]} 5. a4 {[%clk 0:02:56]}  b6 {[%clk 0:02:42]} 6. e3 {[%clk 0:02:55]}  Be7 {[%clk 0:02:39]} 7. Bd3 {[%clk 0:02:54]}  O-O {[%clk 0:02:37]} 8. cxd5 {[%clk 0:02:54]}  exd5 {[%clk 0:02:35]} 9. Ne5 {[%clk 0:02:52]}  c5 {[%clk 0:02:33]} 10. O-O {[%clk 0:02:48]}  Bb7 {[%clk 0:02:32]} 11. f4 {[%clk 0:02:47]}  Re8 {[%clk 0:02:26]} 12. Qf3 {[%clk 0:02:45]}  Nbd7 {[%clk 0:02:25]} 13. Qh3 {[%clk 0:02:43]}  Kf8 {[%clk 0:02:24]} 14. Bxh7 {[%clk 0:02:35]}  Bc8 {[%clk 0:02:25]} 15. Bf5 {[%clk 0:02:16]}  Qc7 {[%clk 0:02:20]} 16. Nxd7+ {[%clk 0:02:09]}  Bxd7 {[%clk 0:02:20]} 17. Qh8+ {[%clk 0:02:08]}  Ng8 {[%clk 0:02:19]} 18. Bh7 {[%clk 0:02:07]}  Bf6 {[%clk 0:02:19]} 19. Nxd5 {[%clk 0:01:59]} 1-0

[Event "January 9 Early 2024"]
[Site "https://www.chess.com"]
[Date "2024.01.11"]
[Round "11"]
[White "Costachi, Mihnea"]
[Black "Sharapov, Evgeny"]
[Result "1-0"]
[Board "4"]
[TimeControl "180+1"]
[WhiteFideId "1217518"]
[BlackFideId "14103133"]
[WhiteElo "2875"]
[BlackElo "2567"]
[WhiteTeam "ROU"]
[BlackTeam "UKR"]
[WhiteClock "0:02:16"]
[BlackClock "0:01:56"]

1. Nc3 {[%clk 0:03:00]}  c5 {[%clk 0:02:59]} 2. Nf3 {[%clk 0:03:00]}  d5 {[%clk 0:02:59]} 3. d4 {[%clk 0:02:59]}  cxd4 {[%clk 0:03:00]} 4. Qxd4 {[%clk 0:02:59]}  e6 {[%clk 0:03:00]} 5. e4 {[%clk 0:02:58]}  Nc6 {[%clk 0:03:00]} 6. Qa4 {[%clk 0:02:59]}  Nf6 {[%clk 0:02:58]} 7. exd5 {[%clk 0:02:56]}  Nxd5 {[%clk 0:02:58]} 8. Nxd5 {[%clk 0:02:54]}  Qxd5 {[%clk 0:02:58]} 9. Bg5 {[%clk 0:02:46]}  Bb4+ {[%clk 0:02:36]} 10. c3 {[%clk 0:02:44]}  Qe4+ {[%clk 0:02:35]} 11. Kd1 {[%clk 0:02:34]}  Qd5+ {[%clk 0:02:32]} 12. Kc2 {[%clk 0:02:28]}  Bc5 {[%clk 0:02:22]} 13. Rd1 {[%clk 0:02:25]}  Qf5+ {[%clk 0:02:17]} 14. Bd3 {[%clk 0:02:25]}  Qd5 {[%clk 0:01:56]} 15. Be4 {[%clk 0:02:16]} 1-0

[Event "January 9 Early 2024"]
[Site "https://www.chess.com"]
[Date "2024.01.11"]
[Round "11"]
[White "Mekhitarian, Krikor Sevag"]
[Black "Zgadzaj, Rafal"]
[Result "1-0"]
[Board "5"]
[TimeControl "180+1"]
[WhiteFideId "2107660"]
[BlackFideId "1113712"]
[WhiteElo "2701"]
[BlackElo "2333"]
[WhiteTeam "BRA"]
[BlackTeam "POL"]
[WhiteClock "0:02:19"]
[BlackClock "0:01:52"]

1. Nf3 {[%clk 0:03:00]}  e6 {[%clk 0:02:57]} 2. c4 {[%clk 0:03:00]}  c6 {[%clk 0:02:57]} 3. d4 {[%clk 0:02:56]}  g6 {[%clk 0:02:55]} 4. Nc3 {[%clk 0:02:54]}  Bg7 {[%clk 0:02:54]} 5. e4 {[%clk 0:02:54]}  Ne7 {[%clk 0:02:55]} 6. h4 {[%clk 0:02:54]}  h5 {[%clk 0:02:54]} 7. e5 {[%clk 0:02:52]}  d6 {[%clk 0:02:53]} 8. Bf4 {[%clk 0:02:52]}  dxe5 {[%clk 0:02:52]} 9. dxe5 {[%clk 0:02:53]}  Qxd1+ {[%clk 0:02:50]} 10. Rxd1 {[%clk 0:02:54]}  O-O {[%clk 0:02:49]} 11. Ne4 {[%clk 0:02:54]}  Nf5 {[%clk 0:02:47]} 12. Nf6+ {[%clk 0:02:55]}  Kh8 {[%clk 0:02:41]} 13. Bd3 {[%clk 0:02:54]}  Na6 {[%clk 0:02:36]} 14. b3 {[%clk 0:02:54]}  Nc5 {[%clk 0:02:36]} 15. Bb1 {[%clk 0:02:54]}  b5 {[%clk 0:02:35]} 16. cxb5 {[%clk 0:02:54]}  cxb5 {[%clk 0:02:35]} 17. O-O {[%clk 0:02:54]}  b4 {[%clk 0:02:34]} 18. Ng5 {[%clk 0:02:55]}  Bb7 {[%clk 0:02:28]} 19. Rc1 {[%clk 0:02:51]}  Rac8 {[%clk 0:02:24]} 20. Bxf5 {[%clk 0:02:41]}  gxf5 {[%clk 0:02:18]} 21. Rfd1 {[%clk 0:02:41]}  Bxf6 {[%clk 0:02:08]} 22. exf6 {[%clk 0:02:41]}  Ne4 {[%clk 0:02:06]} 23. Rxc8 {[%clk 0:02:37]}  Rxc8 {[%clk 0:02:06]} 24. Nxf7+ {[%clk 0:02:37]}  Kh7 {[%clk 0:02:02]} 25. Rd7 {[%clk 0:02:20]}  Rc1+ {[%clk 0:01:52]} 26. Bxc1 {[%clk 0:02:19]} 1-0

[Event "January 9 Early 2024"]
[Site "https://www.chess.com"]
[Date "2024.01.11"]
[Round "11"]
[White "Seo, Jung Min"]
[Black "Pranav, V"]
[Result "0-1"]
[Board "9"]
[TimeControl "180+1"]
[WhiteFideId "1734687"]
[BlackFideId "25060783"]
[WhiteElo "2848"]
[BlackElo "3036"]
[WhiteTeam "SWE"]
[BlackTeam "IND"]
[WhiteClock "0:01:53"]
[BlackClock "0:02:21"]

1. e4 {[%clk 0:03:00]}  e5 {[%clk 0:02:59]} 2. Nf3 {[%clk 0:03:01]}  Nc6 {[%clk 0:02:59]} 3. Bc4 {[%clk 0:03:01]}  Nf6 {[%clk 0:02:59]} 4. d3 {[%clk 0:03:01]}  h6 {[%clk 0:03:00]} 5. c3 {[%clk 0:03:00]}  d6 {[%clk 0:03:00]} 6. a4 {[%clk 0:02:57]}  g6 {[%clk 0:03:01]} 7. a5 {[%clk 0:02:53]}  a6 {[%clk 0:03:01]} 8. Nbd2 {[%clk 0:02:54]}  Bg7 {[%clk 0:02:59]} 9. O-O {[%clk 0:02:53]}  O-O {[%clk 0:03:00]} 10. Re1 {[%clk 0:02:53]}  Be6 {[%clk 0:02:59]} 11. Bxe6 {[%clk 0:02:53]}  fxe6 {[%clk 0:03:00]} 12. Nf1 {[%clk 0:02:52]}  Kh7 {[%clk 0:02:59]} 13. Ng3 {[%clk 0:02:52]}  Qd7 {[%clk 0:02:54]} 14. h3 {[%clk 0:02:45]}  Rad8 {[%clk 0:02:50]} 15. Qe2 {[%clk 0:02:45]}  d5 {[%clk 0:02:46]} 16. Be3 {[%clk 0:02:44]}  d4 {[%clk 0:02:44]} 17. cxd4 {[%clk 0:02:44]}  exd4 {[%clk 0:02:43]} 18. Bd2 {[%clk 0:02:44]}  Qe7 {[%clk 0:02:43]} 19. Rec1 {[%clk 0:02:42]}  Nd7 {[%clk 0:02:42]} 20. b4 {[%clk 0:02:36]}  Qd6 {[%clk 0:02:32]} 21. Rab1 {[%clk 0:02:35]}  Na7 {[%clk 0:02:30]} 22. Nh2 {[%clk 0:02:20]}  Nb5 {[%clk 0:02:29]} 23. f4 {[%clk 0:02:04]}  Nc3 {[%clk 0:02:28]} 24. Bxc3 {[%clk 0:02:05]}  dxc3 {[%clk 0:02:29]} 25. Nf3 {[%clk 0:01:56]}  Qxf4 {[%clk 0:02:28]} 26. Nf1 {[%clk 0:01:56]}  Ne5 {[%clk 0:02:25]} 27. Nxe5 {[%clk 0:01:55]}  Bxe5 {[%clk 0:02:26]} 28. g3 {[%clk 0:01:55]}  Qf3 {[%clk 0:02:25]} 29. Qxf3 {[%clk 0:01:55]}  Rxf3 {[%clk 0:02:25]} 30. b5 {[%clk 0:01:53]}  Rfxd3 {[%clk 0:02:20]} 31. bxa6 {[%clk 0:01:53]}  bxa6 {[%clk 0:02:21]} 32. Rb7 {[%clk 0:01:53]}  Rd1 {[%clk 0:02:21]} 33. Rxd1 {[%clk 0:01:53]}  Rxd1 {[%clk 0:02:22]} 34. Kg2 {[%clk 0:01:53]}  c2 {[%clk 0:02:21]} 0-1